bitfinex/quotes_SOLUSD_20250616
["timestamp","ask_amount","ask_price","bid_price","bid_amount"]
[1750087551081,38.71344299,157.4,157.36,12.71344299]
[1750087551302,52.37599256,157.43,157.36,12.71344299]
[1750087551596,52.37599256,157.43,157.32,6.35647088]
[1750087551597,12.71344299,157.42,157.38,12.71344299]
[1750087551901,12.71344299,157.43,157.38,12.71344299]
[1750087552506,12.71344299,157.42,157.38,12.71344299]
[1750087552684,12.71344299,157.42,157.39,6.35364381]
[1750087553280,12.71344299,157.4,157.35,12.71344299]
[1750087554306,12.71344299,157.4,157.35,19.06870196]
[1750087557303,16.31160418,157.42,157.37,12.71344299]
[1750087558517,16.31160418,157.42,157.38,6.35404752]
[1750087558903,12.71344299,157.41,157.38,6.35404752]
[1750087560792,12.71344299,157.4,157.35,15.88814744]
[1750087560990,12.71344299,157.4,157.36,12.71344299]
[1750087561185,12.71344299,157.41,157.36,12.71344299]
[1750087561787,12.71344299,157.4,157.36,12.71344299]
[1750087562196,12.71344299,157.4,157.35,28.60159043]
[1750087562414,12.71344299,157.4,157.36,12.71344299]
[1750087563001,12.71344299,157.4,157.37,6.35445129]
[1750087565229,3.31383805,157.42,157.38,12.71344299]
[1750087565424,12.71344299,157.46,157.41,12.71344299]
[1750087565932,12.71344299,157.44,157.39,12.71344299]
[1750087566130,12.71344299,157.43,157.39,12.71344299]
[1750087566328,12.71344299,157.43,157.37,26.0]
[1750087566329,12.71344299,157.45,157.4,12.71344299]
[1750087566507,12.71344299,157.44,157.4,12.71344299]
[1750087567326,12.71344299,157.44,157.41,6.35283654]
[1750087567816,16.36980413,157.47,157.4,6.35313278]
[1750087567817,12.71344299,157.43,157.4,6.35313278]
[1750087569009,12.71344299,157.43,157.39,6.35364381]
[1750087569599,12.71344299,157.41,157.39,6.35364381]
[1750087569824,12.71344299,157.4,157.37,6.35445129]
[1750087570132,12.71344299,157.38,157.34,6.35566289]
[1750087570347,12.71344299,157.36,157.34,6.35566289]
[1750087571205,12.71344299,157.35,157.33,6.35606686]
[1750087571410,12.71344299,157.34,157.31,6.35687496]
[1750087571739,12.71344299,157.35,157.31,6.35687496]
[1750087573000,12.71344299,157.36,157.31,34.96250535]
[1750087573618,38.15,157.43,157.35,12.71344299]
[1750087573819,38.71344299,157.4,157.36,12.71344299]
[1750087574316,12.71344299,157.41,157.37,12.71344299]
[1750087574526,17.42787961,157.43,157.39,6.35364381]
[1750087574731,12.71344299,157.42,157.39,6.35364381]
[1750087575526,17.42787961,157.42,157.39,6.35364381]
[1750087575727,12.71344299,157.42,157.39,6.35364381]
[1750087576033,17.42787961,157.42,157.38,6.35396214]
[1750087576337,12.71344299,157.42,157.38,6.35396214]
[1750087576497,17.42787961,157.42,157.38,6.35396214]
[1750087576707,4.71443662,157.41,157.38,6.35396214]
[1750087577435,17.42787961,157.41,157.38,6.35396214]
[1750087577607,12.71344299,157.41,157.38,6.35396214]
[1750087577804,12.71344299,157.41,157.36,12.71344299]
[1750087578009,12.71344299,157.39,157.36,6.35461768]
[1750087578406,12.71344299,157.4,157.36,6.35461768]
[1750087578916,0.28432314,157.41,157.36,6.35461768]
[1750087579104,12.99776613,157.41,157.36,19.06806067]
[1750087579434,12.71344299,157.39,157.36,6.35461768]
[1750087579726,4.7329779,157.38,157.35,6.35510293]
[1750087579904,12.71344299,157.38,157.35,6.35510293]
[1750087580106,12.71344299,157.39,157.35,6.35510293]
[1750087580321,4.73338998,157.38,157.35,6.35510293]
[1750087580626,12.71344299,157.39,157.35,6.35510293]
[1750087581414,4.74248418,157.38,157.35,6.35510293]
[1750087581617,12.71344299,157.39,157.35,6.35510293]
[1750087581824,4.74252452,157.38,157.35,6.35510293]
[1750087582026,12.71344299,157.39,157.35,19.06854592]
[1750087582341,12.71344299,157.41,157.36,12.71344299]
[1750087582633,4.74299278,157.4,157.36,12.71344299]
[1750087582834,4.74299278,157.39,157.37,6.35445129]
[1750087583138,12.71344299,157.41,157.37,6.35445129]
[1750087583319,4.74278059,157.4,157.37,6.35445129]
[1750087583506,12.71344299,157.41,157.37,6.35445129]
[1750087583706,17.45681771,157.4,157.37,6.35445129]
[1750087583925,4.74337472,157.39,157.37,6.35445129]
[1750087584126,12.71344299,157.4,157.37,6.35445129]
[1750087584345,4.74400818,157.39,157.37,6.35445129]
[1750087584513,12.71344299,157.4,157.37,6.35445129]
[1750087584711,12.71344299,157.4,157.36,6.3548551]
[1750087585044,4.74401713,157.39,157.36,6.3548551]
[1750087585217,161.19431666,157.47,157.38,12.71344299]
[1750087585427,12.71344299,157.43,157.38,12.71344299]
[1750087585620,4.74370178,157.42,157.38,12.71344299]
[1750087585936,4.74370178,157.41,157.39,12.71344299]
[1750087586130,15.08529388,157.44,157.39,12.71344299]
[1750087586305,4.74309361,157.43,157.4,6.35324015]
[1750087586504,4.74309361,157.42,157.39,19.06692976]
[1750087586729,4.74278501,157.41,157.36,25.00450396]
[1750087586941,12.71344299,157.43,157.38,12.71344299]
[1750087587117,4.7426523,157.42,157.4,12.71344299]
[1750087587311,4.74240082,157.44,157.4,12.71344299]
[1750087587514,4.74240082,157.44,157.39,12.71344299]
[1750087587515,4.74240082,157.43,157.39,12.71344299]
[1750087587723,4.74240082,157.42,157.39,12.71344299]
[1750087587933,12.71344299,157.44,157.39,12.71344299]
[1750087588119,17.45559076,157.43,157.39,12.71344299]
[1750087588315,4.74214777,157.42,157.39,19.06672964]
[1750087588526,12.71344299,157.4,157.34,12.71344299]
[1750087588727,12.71344299,157.36,157.33,6.35598024]
[1750087588915,28.37204199,157.38,157.31,19.07031795]
[1750087589116,4.74393633,157.37,157.31,19.07031795]
[1750087589333,4.74393633,157.36,157.31,19.07031795]
[1750087592221,12.71344299,157.34,157.3,19.07066137]
[1750087592421,17.45802086,157.33,157.3,6.35721838]
[1750087592661,12.71344299,157.33,157.3,6.35721838]
[1750087593352,12.71344299,157.31,157.28,6.35808748]
[1750087593537,12.71344299,157.32,157.28,6.35808748]
[1750087593729,4.74636641,157.33,157.3,12.71344299]
[1750087593926,4.74620812,157.34,157.3,12.71344299]
[1750087594149,4.74563878,157.36,157.33,12.71344299]
[1750087594383,4.74664025,157.35,157.33,12.71344299]
[1750087594525,12.71344299,157.38,157.34,6.35566289]
[1750087594730,9.49289451,157.37,157.34,6.35566289]
[1750087594927,9.49289451,157.36,157.34,6.35566289]
[1750087595127,12.71344299,157.38,157.34,6.35566289]
[1750087595434,9.49461256,157.37,157.34,6.35566289]
[1750087595639,9.49461256,157.36,157.34,6.35566289]
[1750087595844,12.71344299,157.38,157.34,6.35566289]
[1750087596053,22.20796817,157.37,157.34,6.35566289]
[1750087596357,9.49452518,157.36,157.34,6.35566289]
[1750087596528,12.71344299,157.37,157.34,6.35566289]
[1750087596735,9.49366422,157.36,157.34,6.35566289]
[1750087597054,4.74691516,157.35,157.34,6.35566289]
[1750087597255,48.20707778,157.35,157.26,1.6496]
[1750087597428,12.71344299,157.31,157.27,6.35849176]
[1750087597627,12.71344299,157.32,157.27,34.96816416]
[1750087597827,10.78328862,157.34,157.3,12.71344299]
[1750087598049,10.78328862,157.34,157.31,12.71344299]
[1750087598458,10.78328862,157.34,157.29,25.00733212]
[1750087598635,17.46024538,157.33,157.29,6.35768326]
[1750087598833,12.71344299,157.33,157.29,6.35768326]
[1750087600361,12.71344299,157.32,157.29,6.35768326]
[1750087600952,17.45858299,157.33,157.29,22.25189141]
[1750087601147,12.71344299,157.33,157.29,34.9653344]
[1750087601635,23.49673161,157.34,157.29,34.9653344]
[1750087601835,23.49673161,157.34,157.29,22.25189141]
[1750087602146,23.49673161,157.34,157.29,34.9653344]
[1750087602550,17.45807507,157.33,157.28,12.71344299]
[1750087602742,12.71344299,157.33,157.28,12.71344299]
[1750087603063,12.71344299,157.32,157.27,22.25472117]
[1750087603265,12.71344299,157.31,157.27,22.25472117]
[1750087603637,0.28432314,157.3,157.21,6.36091851]
[1750087603867,12.71344299,157.26,157.21,19.0743615]
[1750087604035,22.20441996,157.28,157.21,54.06780738]
[1750087604230,4.74451879,157.3,157.26,12.71344299]
[1750087604460,56.83891759,157.31,157.26,12.71344299]
[1750087604659,9.48897112,157.3,157.27,19.07193475]
[1750087604832,44.1254746,157.31,157.27,6.35849176]
[1750087605036,9.48853889,157.3,157.27,6.35849176]
[1750087605259,56.83891759,157.31,157.27,6.35849176]
[1750087605472,9.48857534,157.3,157.27,6.35849176]
[1750087605767,12.71344299,157.28,157.25,6.35930047]
[1750087605971,17.45397174,157.28,157.25,6.35930047]
[1750087606273,12.71344299,157.28,157.25,6.35930047]
[1750087606571,12.71344299,157.28,157.23,31.36309185]
[1750087606761,12.71344299,157.29,157.24,19.07314789]
[1750087606932,4.74083255,157.28,157.24,19.07314789]
[1750087607133,12.71344299,157.29,157.24,19.07314789]
[1750087607337,9.4816651,157.28,157.24,19.07314789]
[1750087607537,12.71344299,157.29,157.24,19.07314789]
[1750087607774,4.74020753,157.28,157.24,19.07314789]
[1750087607941,12.71344299,157.29,157.24,19.07314789]
[1750087608270,12.71344299,157.29,157.25,12.71344299]
[1750087608447,4.74014003,157.28,157.25,12.71344299]
[1750087608764,12.71344299,157.29,157.24,34.97241016]
[1750087609350,4.73505529,157.3,157.27,12.71344299]
[1750087609558,44.1254746,157.31,157.27,12.71344299]
[1750087609772,44.1254746,157.31,157.29,12.71344299]
[1750087610651,44.1254746,157.31,157.3,6.35727908]
[1750087610853,44.1254746,157.31,157.3,37.72037093]
[1750087611657,44.1254746,157.31,157.3,39.24327093]
[1750087613055,7.998,157.46,157.34,44.64964886]
[1750087613265,12.71344299,157.43,157.34,44.64964886]
[1750087613602,9.468802,157.45,157.34,44.64964886]
[1750087613603,9.468802,157.42,157.39,12.71344299]
[1750087613775,4.7340136,157.43,157.4,12.71344299]
[1750087613977,16.02678769,157.45,157.4,12.71344299]
[1750087614190,9.46774262,157.44,157.4,12.71344299]
[1750087614364,4.73387125,157.43,157.35,0.14216157]
[1750087614569,4.73378727,157.44,157.4,12.71344299]
[1750087614773,4.73253302,157.43,157.4,12.71344299]
[1750087614977,4.73253302,157.42,157.4,19.06667453]
[1750087615184,17.44629803,157.44,157.4,19.06667453]
[1750087615185,4.73285504,157.43,157.4,19.06667453]
[1750087615383,4.73196877,157.42,157.37,6.35445129]
[1750087615569,12.71344299,157.43,157.39,12.71344299]
[1750087615772,4.73223864,157.42,157.39,12.71344299]
[1750087616068,12.71344299,157.43,157.39,12.71344299]
[1750087616272,4.73210799,157.42,157.39,12.71344299]
[1750087616473,4.7321693,157.43,157.39,12.71344299]
[1750087616671,4.73215649,157.42,157.39,12.71344299]
[1750087616873,4.7321693,157.43,157.39,19.06678147]
[1750087617083,4.73208316,157.42,157.39,19.06678147]
[1750087617297,4.7321693,157.43,157.39,19.06678147]
[1750087617594,4.73207335,157.42,157.4,12.71344299]
[1750087617781,4.7321693,157.44,157.4,12.71344299]
[1750087618101,4.73066025,157.43,157.4,12.71344299]
[1750087618266,17.44398273,157.44,157.39,6.35333848]
[1750087618471,17.44397889,157.43,157.39,19.06678147]
[1750087618805,12.71344299,157.4,157.35,6.35525897]
[1750087619104,12.71344299,157.36,157.31,6.35687496]
[1750087619279,12.71344299,157.36,157.32,12.71344299]
[1750087619477,12.71344299,157.35,157.31,6.35687496]
[1750087619989,7.0958764,157.38,157.31,19.07031795]
[1750087620188,26.42648471,157.39,157.31,19.07031795]
[1750087620189,12.71344299,157.36,157.31,19.07031795]
[1750087620391,12.71344299,157.36,157.32,12.71344299]
[1750087620889,12.71344299,157.36,157.33,6.35606686]
[1750087621091,4.732371,157.35,157.33,6.35606686]
[1750087621294,12.71344299,157.36,157.33,6.35606686]
[1750087621466,17.44582571,157.35,157.32,6.35636501]
[1750087621664,12.71344299,157.35,157.32,6.35636501]
[1750087621899,4.72987507,157.37,157.32,6.35636501]
[1750087622095,12.71344299,157.35,157.32,6.35636501]
[1750087623395,17.44573975,157.36,157.32,6.35636501]
[1750087623571,12.71344299,157.36,157.32,6.35636501]
[1750087624096,17.44608789,157.35,157.32,6.35636501]
[1750087624416,12.71344299,157.35,157.32,6.35636501]
[1750087624998,12.71344299,157.35,157.31,6.35687496]
[1750087626285,12.71344299,157.35,157.3,15.89301745]
[1750087626490,12.71344299,157.34,157.29,6.35768326]
[1750087626666,12.71344299,157.34,157.3,12.71344299]
[1750087627062,17.44612984,157.35,157.3,12.71344299]
[1750087627294,12.71344299,157.35,157.3,12.71344299]
[1750087627498,12.71344299,157.35,157.31,12.71344299]
[1750087628485,12.71344299,157.35,157.32,6.35647088]
[1750087628800,4.73414598,157.34,157.32,6.35647088]
[1750087629004,17.44758897,157.34,157.31,6.35672351]
[1750087629376,12.71344299,157.34,157.31,6.35672351]
[1750087629777,12.71344299,157.33,157.31,6.35672351]
[1750087630007,12.71344299,157.34,157.31,6.35672351]
[1750087630606,12.71344299,157.34,157.3,6.35727908]
[1750087631107,0.28432314,157.36,157.3,19.07072207]
[1750087631410,12.71344299,157.34,157.3,6.35727908]
[1750087632209,12.71344299,157.32,157.29,6.35755183]
[1750087632414,23.57271193,157.33,157.29,6.35755183]
[1750087633202,4.73823717,157.32,157.29,6.35755183]
[1750087633419,10.85926894,157.33,157.3,12.71344299]
[1750087633909,10.85926894,157.33,157.29,34.96520297]
[1750087634087,17.45147635,157.32,157.29,6.35755183]
[1750087634410,12.71344299,157.32,157.29,6.35755183]
[1750087634616,12.71344299,157.32,157.27,6.35849176]
[1750087635113,10.85926894,157.33,157.27,22.25472117]
[1750087635417,4.7377487,157.32,157.27,22.25472117]
[1750087635707,10.85926894,157.33,157.27,22.25472117]
[1750087635911,10.85926894,157.33,157.31,12.71344299]
[1750087636286,10.85926894,157.33,157.3,12.71344299]
[1750087636488,10.85926894,157.33,157.31,6.35687496]
[1750087638309,10.85926894,157.33,157.31,19.07031795]
[1750087638497,12.71344299,157.32,157.27,6.35849176]
[1750087638692,12.71344299,157.32,157.27,19.07193475]
[1750087638887,12.71344299,157.32,157.27,34.96816416]
[1750087639386,15.59561623,157.33,157.27,22.25472117]
[1750087639585,10.85926894,157.33,157.28,12.71344299]
[1750087639782,10.85926894,157.33,157.29,12.71344299]
[1750087640211,23.57271193,157.33,157.28,12.71344299]
[1750087640407,4.73591469,157.32,157.28,12.71344299]
[1750087640622,23.57271193,157.33,157.28,12.71344299]
[1750087640833,4.73520927,157.32,157.29,6.35768326]
[1750087641030,12.71344299,157.32,157.29,6.35768326]
[1750087641326,10.85926894,157.33,157.29,6.35768326]
[1750087641504,4.73514219,157.32,157.29,6.35768326]
[1750087641695,23.57271193,157.33,157.29,6.35768326]
[1750087641893,4.73610612,157.32,157.29,6.35768326]
[1750087642105,23.57271193,157.33,157.29,6.35768326]
[1750087642311,4.73551163,157.32,157.29,6.35768326]
[1750087642608,23.57271193,157.33,157.29,6.35768326]
[1750087642920,4.73566618,157.32,157.27,22.25472117]
[1750087643131,12.71344299,157.32,157.27,6.35849176]
[1750087643426,17.44934109,157.31,157.27,6.35849176]
[1750087643629,12.71344299,157.31,157.27,6.35849176]
[1750087644712,12.71344299,157.31,157.27,19.07193475]
[1750087644912,12.71344299,157.28,157.23,6.36010939]
[1750087645093,12.71344299,157.28,157.14,25.42688599]
[1750087645094,26.0,157.21,157.19,95.10066851]
[1750087645293,1.5224,157.27,157.2,12.71344299]
[1750087645525,0.28432314,157.27,157.2,6.506]
[1750087645694,12.71344299,157.25,157.2,12.71344299]
[1750087646021,12.71344299,157.23,157.17,1.5573]
[1750087646208,12.71344299,157.24,157.19,12.71344299]
[1750087646530,12.71344299,157.29,157.23,12.71344299]
[1750087646696,5.01930711,157.28,157.24,12.71344299]
[1750087646896,0.28432314,157.28,157.25,6.35930047]
[1750087647094,38.99776613,157.28,157.25,6.35930047]
[1750087647599,17.4466609,157.27,157.24,6.35959376]
[1750087647816,12.71344299,157.27,157.24,6.35959376]
[1750087649204,12.71344299,157.27,157.22,12.71344299]
[1750087649205,12.71344299,157.27,157.23,6.36010939]
[1750087649526,26.28432314,157.28,157.23,6.36010939]
[1750087649725,4.73258068,157.27,157.23,6.36010939]
[1750087649899,26.28432314,157.28,157.23,6.36010939]
[1750087650101,4.73102625,157.27,157.23,6.36010939]
[1750087650321,12.71344299,157.26,157.23,6.36010939]
[1750087650629,12.71344299,157.25,157.23,6.36010939]
[1750087650837,38.71344299,157.24,157.16,6.3912]
[1750087651012,12.71344299,157.2,157.15,12.71344299]
[1750087651208,12.71344299,157.21,157.15,22.2711176]
[1750087651535,12.71344299,157.2,157.15,22.2711176]
[1750087651742,12.71344299,157.2,157.16,12.71344299]
[1750087652224,12.71344299,157.2,157.15,22.2711176]
[1750087652225,0.28432314,157.22,157.15,22.2711176]
[1750087652403,12.71344299,157.21,157.17,12.71344299]
[1750087652829,12.71344299,157.21,157.16,12.71344299]
[1750087653240,26.28432314,157.22,157.17,6.36253737]
[1750087653525,12.71344299,157.19,157.17,6.36253737]
[1750087653917,0.28432314,157.17,157.13,6.36415706]
[1750087654115,12.71344299,157.14,157.1,6.36537237]
[1750087654462,12.71344299,157.12,157.06,22.28375429]
[1750087654619,0.42648471,157.11,157.06,22.28375429]
[1750087655019,26.42648471,157.11,157.06,6.3669935]
[1750087655214,26.42648471,157.11,157.05,12.71344299]
[1750087655409,12.71344299,157.1,157.05,12.71344299]
[1750087655608,23.53504072,157.1,157.05,12.71344299]
[1750087656413,23.53504072,157.1,157.06,19.08043649]
[1750087656613,10.82159773,157.1,157.07,12.71344299]
[1750087657112,23.53504072,157.1,157.06,22.28447726]
[1750087657313,23.53504072,157.1,157.0,12.71344299]
[1750087657314,12.71344299,157.07,157.0,12.71344299]
[1750087657514,12.71344299,157.04,157.01,6.36902108]
[1750087658316,12.71344299,157.04,157.0,6.36942675]
[1750087658716,66.39971615,157.05,157.0,19.08286974]
[1750087659047,66.39971615,157.05,157.04,12.71344299]
[1750087660251,66.39971615,157.05,157.01,18.64964886]
[1750087660425,66.39971615,157.05,157.04,19.08124737]
[1750087660916,66.39971615,157.05,157.04,6.36780438]
[1750087661121,66.39971615,157.05,157.04,19.08124737]
[1750087661541,66.39971615,157.05,157.04,6.36780438]
[1750087661711,66.39971615,157.05,157.04,19.08124737]
[1750087663327,66.39971615,157.05,157.04,6.36780438]
[1750087664115,66.39971615,157.05,157.01,6.36902108]
[1750087664315,66.39971615,157.05,157.01,19.08246407]
[1750087664517,12.71344299,157.04,157.01,6.36902108]
[1750087664739,79.11315914,157.05,157.01,6.36902108]
[1750087664925,12.42716729,157.03,157.01,6.36902108]
[1750087666156,12.42716729,157.03,156.96,14.32104299]
[1750087666157,25.14061028,157.03,156.97,6.37064407]
[1750087666367,12.42716729,157.03,156.99,12.71344299]
[1750087667170,25.14061028,157.03,156.97,22.29725425]
[1750087667482,25.14061028,157.03,156.98,12.71344299]
[1750087667855,0.28432314,157.02,156.97,6.37064407]
[1750087668174,12.71344299,157.0,156.95,12.71344299]
[1750087668375,12.84772757,157.02,156.96,12.71344299]
[1750087668588,12.07415426,156.99,156.96,12.71344299]
[1750087668753,12.07415426,156.99,156.98,12.71344299]
[1750087670287,12.07415426,156.99,156.98,19.08368123]
[1750087671581,12.07415426,156.99,156.94,54.1600261]
[1750087671753,12.07415426,156.99,156.98,12.71344299]
[1750087671952,12.07415426,156.99,156.94,54.1600261]
[1750087672379,12.07415426,156.99,156.97,12.71344299]
[1750087673771,12.07415426,156.99,156.98,6.37023824]
[1750087674275,12.07415426,156.99,156.98,19.08368123]
[1750087674667,12.07415426,156.99,156.98,6.37023824]
[1750087675770,12.07415426,156.99,156.96,12.71344299]
[1750087676357,12.07415426,156.99,156.97,12.71344299]
[1750087676759,12.07415426,156.99,156.94,22.30071681]
[1750087677193,12.07415426,156.99,156.96,12.71344299]
[1750087677585,12.07415426,156.99,156.97,12.71344299]
[1750087677888,12.07415426,156.99,156.98,6.37023824]
[1750087679979,12.07415426,156.99,156.96,15.92751637]
[1750087679980,12.07415426,156.99,156.97,6.37064407]
[1750087681178,12.07415426,156.99,156.98,12.71344299]
[1750087681874,12.07415426,156.99,156.98,19.08368123]
[1750087682077,1.6327,157.11,157.01,26.0]
[1750087682285,6.36253879,157.17,157.01,26.0]
[1750087682286,10.91798238,157.16,157.09,12.71344299]
[1750087682485,12.59191347,157.16,157.09,12.71344299]
[1750087682993,7.94927229,157.16,157.09,12.71344299]
[1750087683192,3.30663109,157.16,157.09,12.71344299]
[1750087683893,3.30663109,157.16,157.09,19.07922056]
[1750087684185,145.6,157.19,157.1,26.0]
[1750087684366,0.28432314,157.18,157.16,12.71344299]
[1750087684687,3.30504158,157.19,157.16,12.71344299]
[1750087684985,12.71344299,157.24,157.18,12.71344299]
[1750087685284,12.61913035,157.23,157.19,12.71344299]
[1750087685475,12.61913035,157.23,157.14,12.71344299]
[1750087685476,12.61919522,157.23,157.2,12.71344299]
[1750087685676,3.30446489,157.23,157.2,12.71344299]
[1750087685865,16.01790788,157.23,157.15,6.36334712]
[1750087686186,16.01790788,157.23,157.18,12.71344299]
[1750087686187,12.71344299,157.22,157.18,12.71344299]
[1750087686362,4.94188155,157.22,157.18,12.71344299]
[1750087686562,9.31511698,157.22,157.15,6.36334712]
[1750087686785,4.65755841,157.22,157.15,6.36334712]
[1750087687477,9.31503597,157.22,157.15,6.36334712]
[1750087687664,12.71344299,157.19,157.15,12.71344299]
[1750087687864,22.02847896,157.2,157.15,19.076421]
[1750087688075,4.66543023,157.19,157.16,12.71344299]
[1750087688266,9.33086007,157.2,157.16,12.71344299]
[1750087688475,4.66542984,157.2,157.16,12.71344299]
[1750087689096,13.1399277,157.21,157.16,12.71344299]
[1750087689290,13.1399277,157.21,157.17,12.71344299]
[1750087689694,0.42648471,157.21,157.17,12.71344299]
[1750087689904,13.1399277,157.21,157.17,12.71344299]
[1750087690199,3.30446489,157.23,157.18,12.71344299]
[1750087690365,16.01790788,157.23,157.19,12.71344299]
[1750087690567,0.28432314,157.22,157.19,12.71344299]
[1750087690768,0.28432314,157.22,157.18,12.71344299]
[1750087690988,0.28432314,157.22,157.17,6.36231656]
[1750087691368,0.28432314,157.22,157.15,6.36334712]
[1750087691566,29.30446489,157.23,157.15,22.27171492]
[1750087691783,12.71344299,157.25,157.21,12.71344299]
[1750087692036,0.14216157,157.24,157.21,12.71344299]
[1750087692170,0.14216157,157.24,157.15,28.87371492]
[1750087692171,0.28432314,157.24,157.2,12.71344299]
[1750087692370,4.68063282,157.23,157.2,12.71344299]
[1750087692687,4.67951436,157.23,157.2,12.71344299]
[1750087692891,0.28432314,157.24,157.2,12.71344299]
[1750087693077,4.96399348,157.24,157.21,12.71344299]
[1750087693268,12.71344299,157.23,157.15,28.87371492]
[1750087693477,9.37713397,157.22,157.19,12.71344299]
[1750087693670,3.30228177,157.25,157.2,12.71344299]
[1750087693868,9.37767745,157.24,157.22,12.71344299]
[1750087694080,3.30228177,157.25,157.21,12.71344299]
[1750087694281,9.3778685,157.24,157.21,12.71344299]
[1750087694479,4.68893428,157.24,157.21,12.71344299]
[1750087694683,4.68912647,157.25,157.23,12.71344299]
[1750087694968,4.69096589,157.24,157.22,12.71344299]
[1750087695181,38.85560456,157.26,157.22,12.71344299]
[1750087695384,9.38230969,157.25,157.22,19.07389177]
[1750087695590,26.14216157,157.26,157.22,19.07389177]
[1750087695797,9.38191771,157.25,157.23,12.71344299]
[1750087696104,12.71344299,157.28,157.24,12.71344299]
[1750087696281,9.38121031,157.27,157.23,12.71344299]
[1750087696484,9.38121031,157.26,157.23,12.71344299]
[1750087696698,9.38091455,157.27,157.24,12.71344299]
[1750087697014,9.38091455,157.28,157.24,12.71344299]
[1750087697185,9.38091455,157.27,157.24,12.71344299]
[1750087697378,22.09435754,157.28,157.24,12.71344299]
[1750087697574,4.68771554,157.27,157.21,6.36091851]
[1750087697784,12.71344299,157.25,157.21,12.71344299]
[1750087697993,9.37826075,157.26,157.18,6.36213258]
[1750087697994,12.71344299,157.23,157.18,6.36213258]
[1750087698205,17.4014479,157.23,157.19,12.71344299]
[1750087698412,22.08979399,157.24,157.19,12.71344299]
[1750087698577,12.71344299,157.24,157.19,12.71344299]
[1750087698774,9.37617688,157.23,157.19,12.71344299]
[1750087698977,12.71344299,157.24,157.19,12.71344299]
[1750087699215,4.68783079,157.23,157.19,12.71344299]
[1750087699392,12.71344299,157.24,157.19,12.71344299]
[1750087699710,22.08961987,157.24,157.2,6.36132315]
[1750087700015,12.71344299,157.24,157.2,6.36132315]
[1750087700177,22.08961987,157.24,157.2,6.36132315]
[1750087700780,28.44318605,157.24,157.19,12.71344299]
[1750087700981,12.71344299,157.24,157.19,12.71344299]
[1750087701409,9.37052941,157.25,157.17,22.26888081]
[1750087701577,0.28432314,157.25,157.22,12.71344299]
[1750087701892,0.28432314,157.25,157.21,12.71344299]
[1750087702505,4.96976195,157.25,157.21,12.71344299]
[1750087702694,0.28432314,157.25,157.21,12.71344299]
[1750087703513,12.99776613,157.25,157.21,19.07398473]
[1750087703711,0.28432314,157.25,157.21,19.07398473]
[1750087703895,12.99776613,157.25,157.21,19.07398473]
[1750087704493,12.99776613,157.25,157.2,19.0746238]
[1750087704692,12.71344299,157.22,157.19,6.36159111]
[1750087705089,0.28432314,157.23,157.19,6.36159111]
[1750087705295,12.71344299,157.22,157.19,6.36159111]
[1750087705787,4.96974497,157.24,157.19,6.36159111]
[1750087705987,12.99776613,157.23,157.19,19.0750341]
[1750087707407,12.99776613,157.23,157.19,6.36159111]
[1750087707812,12.99776613,157.23,157.16,22.27015395]
[1750087709694,0.28432314,157.23,157.16,22.27015395]
[1750087710198,12.71344299,157.27,157.22,12.71344299]
[1750087710405,26.0,157.26,157.23,12.71344299]
[1750087710602,12.99776613,157.28,157.23,12.71344299]
[1750087711052,54.17081263,157.29,157.24,12.71344299]
[1750087711353,12.71344299,157.27,157.22,12.71344299]
[1750087711528,12.71344299,157.27,157.21,12.71344299]
[1750087711529,12.71344299,157.25,157.21,12.71344299]
[1750087711845,12.71344299,157.24,157.19,12.71344299]
[1750087712059,12.71344299,157.24,157.2,6.36132315]
[1750087712238,12.71344299,157.24,157.19,19.07504197]
[1750087714128,0.28432314,157.24,157.2,12.71344299]
[1750087714343,0.28432314,157.24,157.21,12.71344299]
[1750087714646,0.28432314,157.24,157.2,12.71344299]
[1750087714833,0.28432314,157.24,157.19,19.07504197]
[1750087714834,12.99776613,157.24,157.19,19.07504197]
[1750087715918,12.71344299,157.23,157.15,32.602]
[1750087716245,12.71344299,157.21,157.17,12.71344299]
[1750087716449,12.71344299,157.22,157.17,12.71344299]
[1750087716616,12.71344299,157.23,157.18,12.71344299]
[1750087717640,12.71344299,157.22,157.18,19.07521302]
[1750087718229,12.71344299,157.22,157.18,18.17521302]
[1750087718436,14.64301893,157.24,157.18,18.17521302]
[1750087718737,12.71344299,157.23,157.19,12.71344299]
[1750087718925,21.00104701,157.24,157.19,12.71344299]
[1750087719124,20.99648593,157.24,157.19,12.71344299]
[1750087719323,12.71344299,157.24,157.19,12.71344299]
[1750087719553,22.10791392,157.25,157.21,19.0743615]
[1750087719751,12.71344299,157.25,157.21,6.36091851]
[1750087720057,12.71344299,157.24,157.2,19.07460115]
[1750087720255,4.69990046,157.25,157.23,12.71344299]
[1750087720453,7.8653,157.31,157.23,12.71344299]
[1750087720454,12.71344299,157.28,157.23,12.71344299]
[1750087720668,9.41105414,157.27,157.23,12.71344299]
[1750087720830,9.41105414,157.26,157.23,12.71344299]
[1750087721026,4.70587934,157.26,157.22,12.71344299]
[1750087721328,12.71344299,157.27,157.23,12.71344299]
[1750087721535,4.70567462,157.26,157.24,6.3597049]
[1750087721749,4.70567479,157.27,157.24,6.3597049]
[1750087721929,4.70567504,157.26,157.24,6.3597049]
[1750087722259,4.70567527,157.27,157.24,6.3597049]